[Event "Portuguese-ch U10-12 2022"]
[Site "Fatima"]
[Date "2022.04.12"]
[Round "4.3"]
[White "Farias, David Nuno M E"]
[Black "Frolov, Ilya"]
[Result "1-0"]
[ECO "B34"]
[WhiteElo "1826"]
[BlackElo "1271"]
[Annotator "NA RC"]
[PlyCount "131"]
[EventDate "2022.04.10"]
[EventType "swiss"]
[EventCountry "POR"]
[SourceTitle "playchess.com"]
[Source "ChessBase"]
[SourceQuality "1"]
[TimeControl "5400+30"]

1. e4 {[%emt 0:00:02]} c5 {[%emt 0:00:01]} 2. Nf3 {[%emt 0:00:07]} Nc6 {[%emt 0:00:02]} 3. d4 {[%emt 0:00:37]} cxd4 {[%emt 0:00:04]} 4. Nxd4 {[%emt 0:00:01]} Nf6 {[%emt 0:00:01]} 5. Nc3 {[%emt 0:00:41]} e5 {[%emt 0:00:25]} 6. Ndb5 {[%emt 0:00:46]} d6 {[%emt 0:00:02]} 7. Bg5 {[%emt 0:01:00]} a6 {[%emt 0:00:02]} 8. Bxf6 {[%emt 0:00:29]} gxf6 {[%emt 0:00:05]} 9. Na3 {[%emt 0:00:06]} b5 {[%emt 0:00:12]} 10. Nd5 Bg7 {[%emt 0:01:31]} 11. g3 {[%emt 0:03:44]} Be6 {[%emt 0:00:34]} 12. Bg2 {[%emt 0:02:44]} O-O {[%emt 0:03:08]} 13. c3 {[%emt 0:10:17]} Rc8 {[%emt 0:00:30]} 14. Nc2 {[%emt 0:03:15]} f5 {[%emt 0:01:20]} 15. exf5 Bxf5 {[%emt 0:00:26]} 16. Nce3 {[%emt 0:13:22]} Be6 {[%emt 0:00:29]} 17. O-O {[%emt 0:02:51]} Ne7 {[%emt 0:00:51]} 18. a4 {[%emt 0:08:46]} Nxd5 {[%emt 0:07:47]} 19. Bxd5 {[%emt 0:03:15]} Qd7 {[%emt 0:03:06]} 20. Qf3 {[%emt 0:06:04]} Rc5 {[%emt 0:18:25]} 21. a5 {[%emt 0:08:00]} Rb8 {[%emt 0:10:40]} 22. Qe4 {[%emt 0:05:43]} Rbc8 {[%emt 0:21:45]} 23. Rfd1 {[%emt 0:02:58]} Rd8 {[%emt 0:10:01]} 24. Kh1 {[%emt 0:09:11]} Kh8 {[%emt 0:04:48]} 25. Qg2 {[%emt 0:05:31]} Bh6 {[%emt 0:06:09]} 26. Nc2 {[%emt 0:01:43]} Bh3 {[%emt 0:03:43]} 27. Qe4 {[%emt 0:03:23]} Bf5 {[%emt 0:00:37]} 28. Qe2 {[%emt 0:00:13]} Be6 {[%emt 0:01:15]} 29. Nb4 {[%emt 0:01:33]} Qc8 {[%emt 0:04:24]} 30. Kg1 {[%emt 0:02:01]} Bg7 {[%emt 0:00:08]} 31. Qe4 {[%emt 0:01:06]} Bxd5 {[%emt 0:00:56]} 32. Rxd5 {[%emt 0:00:10]} Rxd5 {[%emt 0:00:29]} 33. Qxd5 {[%emt 0:00:09]} Rd7 {[%emt 0:00:52]} 34. Rd1 {[%emt 0:01:18]} Bf8 {[%emt 0:00:28]} 35. Qc6 {[%emt 0:03:42]} Qxc6 {[%emt 0:00:23]} 36. Nxc6 {[%emt 0:00:01]} f5 {[%emt 0:00:38]} 37. Nxe5 {[%emt 0:01:06]} Re7 {[%emt 0:00:35]} 38. Nf3 {[%emt 0:00:36]} Rf7 {[%emt 0:01:05]} 39. Rd5 {[%emt 0:01:18]} h6 {[%emt 0:00:36]} 40. Nd4 {[%emt 0:00:31]} f4 {[%emt 0:00:59]} 41. Ne6 {[%emt 0:01:27]} fxg3 {[%emt 0:00:32]} 42. hxg3 {[%emt 0:00:08]} Be7 {[%emt 0:00:45]} 43. Nd4 {[%emt 0:01:24]} Rf6 {[%emt 0:00:19]} 44. Nc6 {[%emt 0:00:22]} Bf8 {[%emt 0:00:30]} 45. Nb8 {[%emt 0:00:19]} Rf7 {[%emt 0:00:32]} 46. Nc6 {[%emt 0:00:52]} Rd7 {[%emt 0:00:36]} 47. Nb4 {[%emt 0:00:18]} Ra7 {[%emt 0:00:30]} 48. Rd3 {[%emt 0:00:40]} Kh7 {[%emt 0:00:30]} 49. Re3 {[%emt 0:00:23]} Kg8 {[%emt 0:00:31]} 50. Re8 {[%emt 0:00:32]} Kf7 {[%emt 0:00:32]} 51. Rc8 {[%emt 0:00:30]} Re7 {[%emt 0:00:33]} 52. Kf1 {[%emt 0:00:22]} Ra7 {[%emt 0:00:33]} 53. Rc6 {[%emt 0:00:37]} Ke6 {[%emt 0:00:27]} 54. Rxa6 {[%emt 0:00:26]} Rxa6 {[%emt 0:00:12]} 55. Nxa6 {[%emt 0:00:02]} Kd7 {[%emt 0:00:20]} 56. Nb4 {[%emt 0:00:23]} Kc7 {[%emt 0:00:27]} 57. Ke2 {[%emt 0:00:23]} Kb7 {[%emt 0:00:45]} 58. Kd3 {[%emt 0:00:55]} Bg7 {[%emt 0:00:30]} 59. Ke4 {[%emt 0:00:35]} Bf6 {[%emt 0:00:43]} 60. Nd5 {[%emt 0:00:06]} Bd8 {[%emt 0:00:26]} 61. b4 {[%emt 0:00:04]} Ka6 {[%emt 0:00:40]} 62. f4 {[%emt 0:00:20]} h5 {[%emt 0:00:29]} 63. f5 {[%emt 0:00:05]} h4 {[%emt 0:00:15]} 64. gxh4 {[%emt 0:00:01]} Bxh4 {[%emt 0:00:01]} 65. f6 {[%emt 0:00:10]} Bxf6 {[%emt 0:00:05]} 66. Nxf6 {[%emt 0:00:02]} 1-0

[Event "Portuguese-ch U10-12 2022"]
[Site "Fatima"]
[Date "2022.04.12"]
[Round "4.4"]
[White "Tomas Falcon, Jesus"]
[Black "Cymbron, Victoria"]
[Result "0-1"]
[ECO "A67"]
[WhiteElo "2244"]
[BlackElo "1494"]
[Annotator "RC"]
[PlyCount "82"]
[EventDate "2022.04.10"]
[EventType "swiss"]
[EventCountry "POR"]
[SourceTitle "playchess.com"]
[Source "ChessBase"]
[SourceQuality "1"]
[TimeControl "5400+30"]

1. d4 {[%emt 0:00:04]} Nf6 {[%emt 0:00:05]} 2. c4 {[%emt 0:00:18]} c5 {[%emt 0:00:07]} 3. d5 {[%emt 0:00:28]} e6 {[%emt 0:00:08]} 4. Nc3 {[%emt 0:00:44]} exd5 {[%emt 0:00:09]} 5. cxd5 {[%emt 0:00:09]} d6 {[%emt 0:00:09]} 6. e4 {[%emt 0:00:31]} g6 {[%emt 0:00:07]} 7. f4 {[%emt 0:00:41]} Bg7 {[%emt 0:00:12]} 8. Bb5+ {[%emt 0:00:16]} Nfd7 {[%emt 0:00:29]} 9. Be2 {[%emt 0:00:56]} O-O {[%emt 0:00:57]} 10. Nf3 {[%emt 0:01:59]} Re8 {[%emt 0:01:33]} 11. O-O {[%emt 0:02:03]} Na6 {[%emt 0:06:55]} 12. Bxa6 {[%emt 0:04:42]} bxa6 {[%emt 0:00:14]} 13. Re1 {[%emt 0:00:24]} Rb8 {[%emt 0:01:41]} 14. Qc2 {[%emt 0:04:01]} Nb6 {[%emt 0:05:28]} 15. h3 {[%emt 0:11:26]} a5 {[%emt 0:03:28]} 16. Be3 {[%emt 0:05:45]} Nc4 {[%emt 0:02:35]} 17. Bc1 {[%emt 0:01:10]} Ba6 {[%emt 0:09:11]} 18. Nd2 {[%emt 0:07:33]} Bd4+ {[%emt 0:00:46]} 19. Kh1 {[%emt 0:00:37]} Ne3 {[%emt 0:00:18]} 20. Qb1 {[%emt 0:00:28]} Nxg2 {[%emt 0:23:56]} 21. Kxg2 {[%emt 0:00:33]} Bxc3 {[%emt 0:00:47]} 22. Qc2 {[%emt 0:01:43]} Bg7 {[%emt 0:02:08]} 23. Nf3 {[%emt 0:02:12]} Qd7 {[%emt 0:01:01]} 24. Rb1 {[%emt 0:03:49]} Bc8 {[%emt 0:06:20]} 25. Rh1 {[%emt 0:01:06]} Rb4 {[%emt 0:02:05]} 26. Nd2 {[%emt 0:01:08]} Bh6 {[%emt 0:00:50]} 27. Nc4 {[%emt 0:00:50]} Ba6 {[%emt 0:02:11]} 28. b3 {[%emt 0:00:16]} Bxc4 {[%emt 0:00:39]} 29. bxc4 {[%emt 0:00:11]} Qe7 {[%emt 0:01:04]} 30. Re1 {[%emt 0:01:14]} Qh4 {[%emt 0:02:29]} 31. Rf1 {[%emt 0:00:54]} Qf6 {[%emt 0:04:42]} 32. Bb2 {[%emt 0:03:17]} Qe7 {[%emt 0:01:00]} 33. Rbe1 {[%emt 0:01:35]} Reb8 {[%emt 0:00:58]} 34. Ba1 {[%emt 0:01:26]} Bg7 {[%emt 0:01:50]} 35. Bxg7 {[%emt 0:00:25]} Kxg7 {[%emt 0:00:09]} 36. Rb1 {[%emt 0:00:19]} Qf6 {[%emt 0:01:40]} 37. Rb3 {[%emt 0:01:18]} a4 {[%emt 0:02:02]} 38. Rxb4 {[%emt 0:00:38]} Rxb4 {[%emt 0:00:06]} 39. Kg3 {[%emt 0:01:29]} Rb2 {[%emt 0:02:26]} 40. Qxa4 {[%emt 0:01:04]} Qc3+ {[%emt 0:00:12]} 41. Rf3 {[%emt 0:00:28]} Qe1+ {[%emt 0:00:08]} 0-1

[Event "Portuguese-ch U10-12 2022"]
[Site "Fatima"]
[Date "2022.04.12"]
[Round "4.5"]
[White "Faryma, Matviy"]
[Black "Tarelho, Bruna Silva"]
[Result "1/2-1/2"]
[ECO "C50"]
[WhiteElo "1426"]
[BlackElo "1187"]
[Annotator "NA RC"]
[PlyCount "67"]
[EventDate "2022.04.10"]
[EventType "swiss"]
[EventCountry "POR"]
[SourceTitle "playchess.com"]
[Source "ChessBase"]
[SourceQuality "1"]
[TimeControl "5400+30"]

1. e4 {[%emt 0:00:03]} e5 {[%emt 0:00:07]} 2. Nf3 {[%emt 0:00:23]} Nc6 {[%emt 0:00:07]} 3. Bc4 {[%emt 0:00:27]} Bc5 {[%emt 0:00:29]} 4. d3 {[%emt 0:00:20]} h6 {[%emt 0:02:02]} 5. Nc3 {[%emt 0:00:50]} Nf6 {[%emt 0:01:22]} 6. h3 {[%emt 0:00:32]} d6 {[%emt 0:00:15]} 7. Be3 {[%emt 0:00:23]} Bb6 {[%emt 0:00:10]} 8. Qd2 {[%emt 0:01:09]} Be6 {[%emt 0:05:22]} 9. Bb3 {[%emt 0:01:45]} Qd7 {[%emt 0:04:13]} 10. O-O-O {[%emt 0:01:32]} O-O-O {[%emt 0:02:30]} 11. d4 {[%emt 0:01:39]} exd4 {[%emt 0:03:15]} 12. Nxd4 {[%emt 0:00:02]} Ba5 {[%emt 0:02:32]} 13. f3 {[%emt 0:01:10]} Kb8 {[%emt 0:06:05]} 14. Ba4 {[%emt 0:06:28]} Rhg8 {[%emt 0:15:28]} 15. Nxc6+ {[%emt 0:07:43]} bxc6 {[%emt 0:00:22]} 16. Qd3 {[%emt 0:00:25]} Bb6 {[%emt 0:03:45]} 17. Rhe1 {[%emt 0:01:24]} Kb7 {[%emt 0:05:45]} 18. f4 {[%emt 0:06:44]} Qe8 {[%emt 0:06:39]} 19. g4 {[%emt 0:01:36]} g5 {[%emt 0:11:48]} 20. f5 {[%emt 0:01:34]} Bc8 {[%emt 0:00:32]} 21. a3 {[%emt 0:10:55]} Kb8 {[%emt 0:04:23]} 22. Kb1 {[%emt 0:02:58]} Bb7 {[%emt 0:00:35]} 23. Bxb6 {[%emt 0:04:59]} axb6 {[%emt 0:01:22]} 24. Nd5 {[%emt 0:08:53]} Nd7 {[%emt 0:05:05]} 25. Ne3 {[%emt 0:00:44]} Nc5 {[%emt 0:01:05]} 26. Qd4 {[%emt 0:00:24]} Qxe4 {[%emt 0:01:22]} 27. Qxe4 {[%emt 0:00:47]} Nxe4 {[%emt 0:00:09]} 28. Bb3 {[%emt 0:00:10]} d5 {[%emt 0:01:49]} 29. c4 {[%emt 0:00:51]} Nc5 {[%emt 0:01:24]} 30. Ba2 {[%emt 0:00:45]} Rge8 {[%emt 0:02:04]} 31. cxd5 {[%emt 0:04:04]} cxd5 {[%emt 0:00:33]} 32. b4 {[%emt 0:00:33]} Ne4 {[%emt 0:03:06]} 33. Kc2 {[%emt 0:00:35]} Nf6 {[%emt 0:01:53]} 34. b5 {[%emt 0:01:11]} 1/2-1/2

[Event "Portuguese-ch U10-12 2022"]
[Site "Fatima"]
[Date "2022.04.12"]
[Round "4.6"]
[White "Savchenko, Alexandr"]
[Black "Nogueira, Rafael Calade"]
[Result "1-0"]
[ECO "A40"]
[WhiteElo "2130"]
[BlackElo "1263"]
[Annotator "RC"]
[PlyCount "105"]
[EventDate "2022.04.10"]
[EventType "swiss"]
[EventCountry "POR"]
[SourceTitle "playchess.com"]
[Source "ChessBase"]
[SourceQuality "1"]
[TimeControl "5400+30"]

1. d4 {[%emt 0:00:01]} c6 {[%emt 0:00:11]} 2. Nf3 {[%emt 0:00:16]} d5 {[%emt 0:00:14]} 3. c3 {[%emt 0:00:16]} Bf5 {[%emt 0:00:39]} 4. Bf4 {[%emt 0:00:30]} e6 {[%emt 0:00:30]} 5. Nbd2 {[%emt 0:00:37]} Bd6 {[%emt 0:00:29]} 6. e3 {[%emt 0:00:20]} Bxf4 {[%emt 0:01:23]} 7. exf4 {[%emt 0:00:15]} Nf6 {[%emt 0:01:05]} 8. Qb3 {[%emt 0:01:06]} Qc7 {[%emt 0:01:05]} 9. g3 {[%emt 0:00:50]} Nbd7 {[%emt 0:01:07]} 10. Bg2 {[%emt 0:01:37]} O-O {[%emt 0:00:55]} 11. O-O {[%emt 0:00:31]} c5 {[%emt 0:01:55]} 12. Rac1 {[%emt 0:02:21]} Rac8 {[%emt 0:01:19]} 13. Qd1 {[%emt 0:01:39]} Qb6 {[%emt 0:06:29]} 14. Qb3 {[%emt 0:01:38]} Ne4 {[%emt 0:02:02]} 15. Nxe4 {[%emt 0:02:41]} Bxe4 {[%emt 0:00:15]} 16. Ne5 {[%emt 0:00:43]} Bxg2 {[%emt 0:06:09]} 17. Qxb6 {[%emt 0:06:18]} Nxb6 {[%emt 0:00:25]} 18. Kxg2 {[%emt 0:00:14]} f6 {[%emt 0:01:20]} 19. Nd3 {[%emt 0:01:08]} Nd7 {[%emt 0:02:48]} 20. Rfe1 {[%emt 0:00:56]} Rfe8 {[%emt 0:00:56]} 21. b4 {[%emt 0:01:14]} b6 {[%emt 0:02:17]} 22. Kf3 {[%emt 0:02:17]} Kf7 {[%emt 0:02:04]} 23. g4 {[%emt 0:01:04]} Rc7 {[%emt 0:05:32]} 24. h4 {[%emt 0:00:40]} Rec8 {[%emt 0:01:58]} 25. a3 {[%emt 0:01:08]} cxd4 {[%emt 0:01:48]} 26. cxd4 {[%emt 0:00:29]} Rxc1 {[%emt 0:02:37]} 27. Rxc1 {[%emt 0:00:13]} Rxc1 {[%emt 0:00:06]} 28. Nxc1 {[%emt 0:00:06]} e5 {[%emt 0:01:01]} 29. Ke3 {[%emt 0:01:06]} exd4+ {[%emt 0:01:43]} 30. Kxd4 {[%emt 0:00:11]} Ke6 {[%emt 0:00:23]} 31. f5+ {[%emt 0:00:57]} Kd6 {[%emt 0:00:23]} 32. f4 {[%emt 0:00:19]} a6 {[%emt 0:03:14]} 33. Ne2 {[%emt 0:00:39]} Nb8 {[%emt 0:00:53]} 34. Nc1 {[%emt 0:01:22]} Nc6+ {[%emt 0:01:09]} 35. Kc3 {[%emt 0:01:26]} d4+ {[%emt 0:02:10]} 36. Kc4 {[%emt 0:00:59]} b5+ {[%emt 0:16:35]} 37. Kd3 {[%emt 0:00:21]} Kd5 {[%emt 0:00:33]} 38. h5 {[%emt 0:00:37]} h6 {[%emt 0:01:41]} 39. Nb3 {[%emt 0:00:26]} Kd6 {[%emt 0:03:45]} 40. Nc5 {[%emt 0:01:02]} a5 {[%emt 0:02:30]} 41. Nb7+ {[%emt 0:00:27]} Kc7 {[%emt 0:02:13]} 42. Nxa5 {[%emt 0:00:13]} Nxa5 {[%emt 0:01:37]} 43. bxa5 {[%emt 0:00:08]} Kb7 {[%emt 0:00:29]} 44. Kxd4 {[%emt 0:00:20]} Ka6 {[%emt 0:00:59]} 45. g5 {[%emt 0:00:57]} Kxa5 {[%emt 0:01:49]} 46. Kc5 {[%emt 0:00:45]} Ka4 {[%emt 0:10:16]} 47. Kb6 {[%emt 0:00:18]} b4 {[%emt 0:00:24]} 48. axb4 {[%emt 0:00:10]} Kxb4 {[%emt 0:00:09]} 49. gxh6 {[%emt 0:00:26]} gxh6 {[%emt 0:00:41]} 50. Kc6 {[%emt 0:00:07]} Kc4 {[%emt 0:02:56]} 51. Kd6 {[%emt 0:00:09]} Kd4 {[%emt 0:00:02]} 52. Ke6 {[%emt 0:00:13]} Ke4 {[%emt 0:00:06]} 53. Kxf6 {[%emt 0:00:09]} 1-0

[Event "Portuguese-ch U10-12 2022"]
[Site "Fatima"]
[Date "2022.04.12"]
[Round "4.7"]
[White "Filipe, Gustavo Castro"]
[Black "Araujo, Ricardo Franca P D"]
[Result "1/2-1/2"]
[ECO "A30"]
[WhiteElo "1401"]
[BlackElo "1405"]
[Annotator "NA RC"]
[PlyCount "60"]
[EventDate "2022.04.10"]
[EventType "swiss"]
[EventCountry "POR"]
[SourceTitle "playchess.com"]
[Source "ChessBase"]
[SourceQuality "1"]
[TimeControl "5400+30"]

1. c4 {[%emt 0:00:12]} c5 {[%emt 0:00:08]} 2. g3 {[%emt 0:00:44]} e6 {[%emt 0:00:20]} 3. Bg2 {[%emt 0:01:01]} Nf6 {[%emt 0:00:20]} 4. Nf3 {[%emt 0:01:08]} d5 {[%emt 0:00:32]} 5. cxd5 {[%emt 0:01:09]} exd5 {[%emt 0:00:08]} 6. d4 {[%emt 0:01:10]} cxd4 {[%emt 0:00:22]} 7. Nxd4 {[%emt 0:01:01]} Nc6 {[%emt 0:00:41]} 8. O-O {[%emt 0:01:30]} Bc5 {[%emt 0:01:48]} 9. Nxc6 {[%emt 0:03:18]} bxc6 {[%emt 0:00:34]} 10. Nd2 {[%emt 0:00:55]} O-O {[%emt 0:01:22]} 11. Nb3 {[%emt 0:00:35]} Bb6 {[%emt 0:01:24]} 12. Qc2 {[%emt 0:02:10]} Qd7 {[%emt 0:06:39]} 13. Rd1 {[%emt 0:04:08]} Re8 {[%emt 0:02:39]} 14. e3 {[%emt 0:04:17]} Qc7 {[%emt 0:04:05]} 15. Nc5 {[%emt 0:02:53]} Bg4 {[%emt 0:02:55]} 16. Rd4 {[%emt 0:07:25]} Qe7 {[%emt 0:04:46]} 17. b4 {[%emt 0:01:54]} Bh5 {[%emt 0:04:26]} 18. Rd2 {[%emt 0:04:26]} Bxc5 {[%emt 0:03:53]} 19. Qxc5 {[%emt 0:01:16]} Qxc5 {[%emt 0:00:11]} 20. bxc5 {[%emt 0:00:08]} Ne4 {[%emt 0:00:16]} 21. Bxe4 {[%emt 0:01:06]} Rxe4 {[%emt 0:03:01]} 22. Rd4 {[%emt 0:01:00]} f5 {[%emt 0:02:24]} 23. Rb1 {[%emt 0:00:52]} Kf7 {[%emt 0:01:14]} 24. Rb7+ {[%emt 0:00:38]} Re7 {[%emt 0:00:10]} 25. Rxe7+ {[%emt 0:05:10]} Kxe7 {[%emt 0:00:06]} 26. Rb4 {[%emt 0:00:18]} Rd8 {[%emt 0:01:28]} 27. Bb2 {[%emt 0:01:06]} g6 {[%emt 0:02:11]} 28. Ra4 {[%emt 0:01:52]} Rd7 {[%emt 0:00:43]} 29. Rb4 {[%emt 0:02:23]} Be2 {[%emt 0:00:44]} 30. Rb8 {[%emt 0:00:19]} Ke6 {[%emt 0:01:14]} 1/2-1/2

[Event "Portuguese-ch U10-12 2022"]
[Site "Fatima"]
[Date "2022.04.12"]
[Round "4.8"]
[White "Moldovan, Lucas Gabriel"]
[Black "Valente, Sofia"]
[Result "1/2-1/2"]
[ECO "B01"]
[WhiteElo "1575"]
[BlackElo "1410"]
[Annotator "NA RC"]
[PlyCount "142"]
[EventDate "2022.04.10"]
[EventType "swiss"]
[EventCountry "POR"]
[SourceTitle "playchess.com"]
[Source "ChessBase"]
[SourceQuality "1"]
[TimeControl "5400+30"]

1. e4 {[%emt 0:00:02]} d5 {[%emt 0:05:37]} 2. exd5 {[%emt 0:00:08]} Nf6 {[%emt 0:00:48]} 3. d4 {[%emt 0:00:16]} Bg4 {[%emt 0:01:09]} 4. Bb5+ {[%emt 0:01:42]} Nbd7 {[%emt 0:05:33]} 5. f3 {[%emt 0:00:49]} Bf5 {[%emt 0:00:53]} 6. Nc3 {[%emt 0:01:40]} a6 {[%emt 0:01:25]} 7. Ba4 {[%emt 0:01:11]} b5 {[%emt 0:00:53]} 8. Bb3 {[%emt 0:01:45]} Nb6 {[%emt 0:03:32]} 9. Nge2 {[%emt 0:01:20]} Nbxd5 {[%emt 0:04:56]} 10. Nxd5 {[%emt 0:02:16]} Nxd5 {[%emt 0:02:01]} 11. O-O {[%emt 0:02:51]} e6 {[%emt 0:02:18]} 12. Ng3 {[%emt 0:03:10]} Bg6 {[%emt 0:01:20]} 13. f4 {[%emt 0:05:03]} Ne7 {[%emt 0:11:23]} 14. Qf3 {[%emt 0:03:06]} f5 {[%emt 0:11:03]} 15. Bxe6 {[%emt 0:02:17]} Bf7 {[%emt 0:06:39]} 16. Bxf7+ {[%emt 0:03:43]} Kxf7 {[%emt 0:01:19]} 17. Re1 {[%emt 0:00:46]} g6 {[%emt 0:01:15]} 18. Qe3 {[%emt 0:01:06]} Qd5 {[%emt 0:03:54]} 19. Qe5 {[%emt 0:04:51]} Qxe5 {[%emt 0:02:53]} 20. dxe5 {[%emt 0:00:15]} Ke6 {[%emt 0:01:44]} 21. Be3 {[%emt 0:01:07]} Nd5 {[%emt 0:00:54]} 22. Nf1 {[%emt 0:02:21]} Bb4 {[%emt 0:02:50]} 23. Red1 {[%emt 0:01:57]} Rad8 {[%emt 0:01:32]} 24. c3 {[%emt 0:02:19]} Ba5 {[%emt 0:01:50]} 25. g3 {[%emt 0:02:49]} Rd7 {[%emt 0:01:17]} 26. Rd3 {[%emt 0:02:07]} Rhd8 {[%emt 0:02:55]} 27. Rad1 {[%emt 0:01:26]} c6 {[%emt 0:03:56]} 28. Bc5 {[%emt 0:04:16]} Bb6 {[%emt 0:02:19]} 29. Bxb6 {[%emt 0:00:35]} Nxb6 {[%emt 0:00:18]} 30. Rxd7 {[%emt 0:00:19]} Rxd7 {[%emt 0:00:14]} 31. Rxd7 {[%emt 0:00:08]} Kxd7 {[%emt 0:00:09]} 32. Ne3 {[%emt 0:02:39]} Na4 {[%emt 0:01:25]} 33. Nd1 {[%emt 0:00:03]} Nc5 {[%emt 0:00:38]} 34. Kf2 {[%emt 0:00:39]} Ke6 {[%emt 0:00:56]} 35. Ke3 {[%emt 0:03:43]} Nd7 {[%emt 0:00:21]} 36. Nf2 {[%emt 0:00:54]} Kd5 {[%emt 0:01:40]} 37. Nd3 {[%emt 0:00:35]} a5 {[%emt 0:00:48]} 38. Nc1 {[%emt 0:01:51]} Nb6 {[%emt 0:00:39]} 39. Kd3 {[%emt 0:01:09]} Na4 {[%emt 0:01:03]} 40. b3 {[%emt 0:02:40]} Nb6 {[%emt 0:01:19]} 41. Ne2 {[%emt 0:01:26]} c5 {[%emt 0:01:31]} 42. c4+ {[%emt 0:01:46]} bxc4+ {[%emt 0:00:20]} 43. bxc4+ {[%emt 0:00:01]} Ke6 {[%emt 0:00:24]} 44. Nc3 {[%emt 0:00:13]} h6 {[%emt 0:00:52]} 45. Nb5 {[%emt 0:00:45]} Na8 {[%emt 0:01:11]} 46. Nd6 {[%emt 0:01:32]} Kd7 {[%emt 0:01:13]} 47. Nb7 {[%emt 0:00:40]} Kc6 {[%emt 0:00:44]} 48. Nxa5+ {[%emt 0:00:14]} Kb6 {[%emt 0:00:22]} 49. Nb3 {[%emt 0:00:17]} Nc7 {[%emt 0:00:17]} 50. Nc1 {[%emt 0:04:48]} Kc6 {[%emt 0:00:25]} 51. Ne2 {[%emt 0:00:19]} Ne6 {[%emt 0:00:39]} 52. Nc3 {[%emt 0:00:44]} g5 {[%emt 0:00:33]} 53. Nd5 {[%emt 0:00:35]} Kd7 {[%emt 0:00:39]} 54. a4 {[%emt 0:02:23]} Ng7 {[%emt 0:00:34]} 55. a5 {[%emt 0:04:14]} Kc8 {[%emt 0:00:19]} 56. Kc3 {[%emt 0:02:56]} Kb7 {[%emt 0:00:37]} 57. Kb3 {[%emt 0:00:14]} Ne6 {[%emt 0:00:33]} 58. Ne7 {[%emt 0:01:24]} Nd4+ {[%emt 0:00:25]} 59. Kc3 {[%emt 0:02:57]} gxf4 {[%emt 0:00:41]} 60. gxf4 {[%emt 0:00:11]} Ka6 {[%emt 0:00:38]} 61. Kd3 {[%emt 0:01:48]} Kxa5 {[%emt 0:00:46]} 62. h4 {[%emt 0:00:34]} h5 {[%emt 0:00:34]} 63. Ng8 {[%emt 0:00:20]} Ne6 {[%emt 0:00:19]} 64. Ne7 {[%emt 0:02:59]} Nd4 {[%emt 0:01:31]} 65. Nxf5 {[%emt 0:02:17]} Nxf5 {[%emt 0:01:22]} 66. Ke4 {[%emt 0:00:05]} Nd4 {[%emt 0:03:11]} 67. f5 {[%emt 0:00:23]} Kb6 {[%emt 0:01:29]} 68. f6 {[%emt 0:01:06]} Kc6 {[%emt 0:01:10]} 69. f7 {[%emt 0:00:05]} Ne6 {[%emt 0:00:21]} 70. Kf5 {[%emt 0:00:04]} Kd7 {[%emt 0:00:21]} 71. Kf6 {[%emt 0:00:14]} Nf8 {[%emt 0:00:27]} 1/2-1/2

[Event "Portuguese-ch U10-12 2022"]
[Site "Fatima"]
[Date "2022.04.12"]
[Round "5.1"]
[White "De Sousa Silva, Lucas Jose"]
[Black "Albuquerque, Eduardo Ferreira"]
[Result "1/2-1/2"]
[ECO "B19"]
[WhiteElo "1656"]
[BlackElo "1828"]
[Annotator "NA RC"]
[PlyCount "61"]
[EventDate "2022.04.10"]
[EventType "swiss"]
[EventCountry "POR"]
[SourceTitle "playchess.com"]
[Source "ChessBase"]
[SourceQuality "1"]
[TimeControl "5400+30"]

1. e4 {[%emt 0:00:03]} c6 {[%emt 0:00:36]} 2. d4 {[%emt 0:00:19]} d5 {[%emt 0:00:15]} 3. Nc3 {[%emt 0:00:48]} dxe4 {[%emt 0:00:21]} 4. Nxe4 {[%emt 0:00:08]} Bf5 {[%emt 0:00:24]} 5. Ng3 {[%emt 0:00:42]} Bg6 {[%emt 0:00:36]} 6. h4 {[%emt 0:01:14]} h6 {[%emt 0:00:57]} 7. Nf3 {[%emt 0:01:41]} Nd7 {[%emt 0:01:18]} 8. Bd3 {[%emt 0:02:19]} Bxd3 {[%emt 0:01:03]} 9. Qxd3 {[%emt 0:00:33]} Ngf6 {[%emt 0:01:47]} 10. O-O {[%emt 0:06:16]} e6 {[%emt 0:06:59]} 11. c4 {[%emt 0:06:53]} Qc7 {[%emt 0:05:54]} 12. a3 {[%emt 0:08:48]} Bd6 {[%emt 0:06:17]} 13. Ne2 {[%emt 0:00:39]} O-O-O {[%emt 0:01:52]} 14. c5 {[%emt 0:01:32]} Nxc5 {[%emt 0:01:37]} 15. Qc2 {[%emt 0:02:18]} Ncd7 {[%emt 0:02:25]} 16. g3 {[%emt 0:01:14]} Nd5 {[%emt 0:03:00]} 17. b4 {[%emt 0:01:50]} Kb8 {[%emt 0:04:54]} 18. Bd2 {[%emt 0:01:08]} N7f6 {[%emt 0:10:27]} 19. Rfc1 {[%emt 0:02:50]} e5 {[%emt 0:05:12]} 20. b5 {[%emt 0:09:26]} e4 {[%emt 0:17:28]} 21. Ne5 {[%emt 0:01:55]} c5 {[%emt 0:07:11]} 22. Nf4 {[%emt 0:07:21]} Bxe5 {[%emt 0:06:30]} 23. Nxd5 {[%emt 0:00:58]} (23. dxe5 $17 e3 24. exf6 (24. Bxe3 $2 Nxe3 25. Qe2 Nfd5 $19) 24... exd2 25. Qxd2 Nxf6 26. Qb2) 23... Nxd5 {[%emt 0:00:48]} 24. dxe5 {[%emt 0:00:05]} Qxe5 {[%emt 0:01:48]} 25. Qxc5 {[%emt 0:00:30]} Rhe8 {[%emt 0:02:31]} 26. Rd1 {[%emt 0:03:32] [#]} Rc8 {[%emt 0:04:31]} (26... g5 $1 $19 27. hxg5 hxg5) 27. Qxd5 $15 {[%emt 0:01:12] Remove Defender} Qxd5 {[%emt 0:00:04]} 28. Bf4+ {[%emt 0:00:09]} Qe5 {[%emt 0:00:09]} 29. Bxe5+ {[%emt 0:00:31]} Rxe5 {[%emt 0:00:07]} 30. Rd7 {[%emt 0:01:00]} Rc7 {[%emt 0:01:10]} 31. Rd8+ {[%emt 0:00:06]} 1/2-1/2

[Event "Portuguese-ch U10-12 2022"]
[Site "Fatima"]
[Date "2022.04.12"]
[Round "5.2"]
[White "Cymbron, Victoria"]
[Black "Farias, David Nuno M E"]
[Result "0-1"]
[ECO "B23"]
[WhiteElo "1494"]
[BlackElo "1826"]
[Annotator "NA RC"]
[PlyCount "66"]
[EventDate "2022.04.10"]
[EventType "swiss"]
[EventCountry "POR"]
[SourceTitle "playchess.com"]
[Source "ChessBase"]
[SourceQuality "1"]
[TimeControl "5400+30"]

1. e4 {[%emt 0:00:02]} c5 {[%emt 0:00:05]} 2. Nc3 {[%emt 0:00:06]} e6 {[%emt 0:00:09]} 3. f4 {[%emt 0:00:05]} Nc6 {[%emt 0:00:55]} 4. Nf3 {[%emt 0:00:10]} a6 {[%emt 0:00:47]} 5. a4 {[%emt 0:00:09]} d6 {[%emt 0:02:20]} 6. g3 {[%emt 0:00:47]} g6 {[%emt 0:00:52]} 7. Bg2 {[%emt 0:02:00]} Bg7 {[%emt 0:00:44]} 8. Ne2 {[%emt 0:00:53]} e5 {[%emt 0:22:22]} 9. O-O {[%emt 0:02:18]} Nge7 {[%emt 0:00:46]} 10. h3 {[%emt 0:02:15]} O-O {[%emt 0:01:34]} 11. d3 {[%emt 0:00:46]} b6 {[%emt 0:05:59]} 12. c3 {[%emt 0:05:00]} Bb7 {[%emt 0:12:03]} 13. g4 {[%emt 0:08:10]} Qd7 {[%emt 0:06:31]} 14. f5 {[%emt 0:01:54]} f6 {[%emt 0:01:05]} 15. Be3 {[%emt 0:04:45]} Kh8 {[%emt 0:04:06]} 16. Qe1 {[%emt 0:03:10]} gxf5 {[%emt 0:02:45]} 17. gxf5 {[%emt 0:03:08]} d5 {[%emt 0:06:22]} 18. Nh2 {[%emt 0:06:06]} d4 {[%emt 0:02:54]} 19. cxd4 {[%emt 0:01:28]} Nxd4 {[%emt 0:01:24]} 20. Nxd4 {[%emt 0:02:45]} cxd4 {[%emt 0:00:33]} 21. Bc1 {[%emt 0:02:12]} Rac8 {[%emt 0:01:52]} 22. Ng4 {[%emt 0:03:24]} Rc2 {[%emt 0:02:03]} 23. Qh4 {[%emt 0:04:35]} Nxf5 24. Qe1 {[%emt 0:02:08]} Nd6 {[%emt 0:07:43]} 25. Rf2 {[%emt 0:06:34]} Rxf2 {[%emt 0:02:48]} 26. Qxf2 {[%emt 0:01:07]} f5 {[%emt 0:02:52]} 27. exf5 {[%emt 0:00:22]} Nxf5 {[%emt 0:01:02]} 28. Qe1 {[%emt 0:02:36]} Bxg2 {[%emt 0:02:14]} 29. Kxg2 {[%emt 0:00:16]} h5 {[%emt 0:01:10]} 30. Nxe5 {[%emt 0:04:48]} Qd5+ {[%emt 0:01:13]} 31. Nf3 {[%emt 0:00:26]} Ne3+ {[%emt 0:03:24]} 32. Bxe3 {[%emt 0:00:54]} Qxf3+ {[%emt 0:00:20]} 33. Kh2 {[%emt 0:00:10]} Be5+ {[%emt 0:02:10]} 0-1